bitfinex/quotes_ETHUSD_20260226
["timestamp","ask_amount","ask_price","bid_price","bid_amount"]
[1772071841769,1.7427784,2048.1,2047.2,0.8343643]
[1772071841982,1.7427784,2047.9,2047.2,0.8343643]
[1772071842194,1.7427784,2047.9,2047.0,1.418]
[1772071842501,1.7427784,2047.9,2047.0,2.2523643]
[1772071842688,1.22082234,2047.8,2047.1,1.2212398]
[1772071842993,1.7427784,2047.7,2047.0,1.418]
[1772071843366,3.81151137,2048.0,2047.0,3.4736625]
[1772071843672,1.7427784,2047.8,2046.8,2.05574625]
[1772071844972,1.22088196,2047.7,2046.9,0.8343643]
[1772071845784,2.96366036,2047.7,2046.9,0.8343643]
[1772071846708,1.7427784,2047.5,2046.7,1.22143428]
[1772071846893,2.96380194,2047.5,2046.7,2.05579858]
[1772071847311,2.96380194,2047.5,2047.2,0.0011]
[1772071847595,3.81180411,2047.5,2047.2,0.0011]
[1772071847786,3.81180411,2047.5,2046.5,5.72073188]
[1772071847981,3.81180411,2047.5,2047.0,0.0011]
[1772071848720,2.96380194,2047.5,2047.0,0.0011]
[1772071848883,1.22091327,2047.7,2047.0,0.8354643]
[1772071849082,1.22091327,2047.7,2047.0,2.05675878]
[1772071850024,1.22091327,2047.7,2047.0,0.0011]
[1772071852893,11.02664559,2047.8,2047.0,0.8354643]
[1772071853087,8.063,2047.8,2047.0,0.8354643]
[1772071853900,2.92966983,2048.1,2047.1,0.8343643]
[1772071854089,2.92966983,2048.1,2047.3,0.8343643]
[1772071854517,1.709,2048.1,2047.3,0.8343643]
[1772071854722,1.708,2048.4,2047.3,0.8343643]
[1772071854915,0.84900217,2048.5,2047.5,0.8343643]
[1772071854916,1.22145123,2048.5,2047.5,0.8343643]
[1772071855227,2.96422963,2048.5,2047.5,0.8343643]
[1772071855430,1.7427784,2048.3,2047.5,0.8343643]
[1772071856627,1.22058392,2048.2,2047.5,2.05534038]
[1772071856925,0.001,2048.5,2047.7,0.81312643]
[1772071857130,1.22141647,2048.5,2047.7,0.81312643]
[1772071857509,1.7427784,2048.4,2047.7,0.81312643]
[1772071858393,1.22141647,2048.5,2047.7,0.81312643]
[1772071858815,1.7427784,2048.4,2047.7,0.81312643]
[1772071859120,1.7427784,2048.4,2047.5,1.22095486]
[1772071860023,0.001,2048.2,2047.5,2.03408129]
[1772071860699,0.001,2048.2,2047.5,1.98408129]
[1772071861026,0.001,2048.5,2048.0,0.81312643]
[1772071862556,1.22143647,2048.5,2047.6,0.81312643]
[1772071863220,3.4855568,2049.0,2047.6,0.81312643]
[1772071863221,0.875715,2049.4,2048.3,1.7427784]
[1772071863427,4.87987669,2049.3,2048.4,0.81312643]
[1772071863937,5.75559169,2049.3,2048.4,0.81312643]
[1772071864727,2.6184934,2048.9,2048.1,0.81312643]
[1772071864954,4.87987669,2049.3,2047.5,2.03408932]
[1772071864955,1.7427784,2048.5,2047.5,2.03408932]
[1772071865149,1.22058392,2048.2,2047.5,2.0341222]
[1772071865353,1.22058392,2048.2,2047.5,0.81312643]
[1772071865654,1.22058392,2048.2,2047.5,2.0341204]
[1772071866634,1.22058392,2048.2,2047.5,0.81312643]
[1772071867038,1.22058392,2048.2,2047.4,1.22103406]
[1772071867235,1.22058392,2048.2,2047.3,1.2211205]
[1772071867436,1.22058392,2048.2,2047.2,2.22312643]
[1772071867437,1.7427784,2048.0,2047.2,2.22312643]
[1772071867739,0.875715,2048.1,2047.2,3.44430516]
[1772071868441,0.875715,2048.1,2047.3,0.81312643]
[1772071869456,1.22070312,2048.0,2047.3,2.03420309]
[1772071870960,1.22070312,2048.0,2047.3,1.98420309]
[1772071871137,3.83919652,2048.0,2047.2,1.41]
[1772071871464,0.875715,2047.7,2047.0,0.0011]
[1772071871840,1.22094159,2047.6,2047.5,0.0011]
[1772071872043,1.702,2048.0,2047.5,0.0011]
[1772071872267,2.92270644,2048.0,2047.5,0.0011]
[1772071872843,1.7427784,2047.9,2047.5,0.0011]
[1772071873040,2.6184934,2047.9,2047.3,0.0011]
[1772071873865,1.22079858,2047.9,2047.3,0.0011]
[1772071874954,3.83929198,2047.9,2047.3,0.0011]
[1772071875653,2.09651358,2047.9,2047.3,0.0011]
[1772071875864,1.22061575,2048.2,2047.5,0.81312643]
[1772071876166,1.22061575,2048.2,2047.3,1.22217407]
[1772071876167,2.6184934,2047.9,2047.3,0.0011]
[1772071877648,2.6184934,2047.9,2046.4,4.88767539]
[1772071877649,0.875715,2047.3,2046.7,0.0011]
[1772071877862,1.7427784,2047.4,2046.7,0.0011]
[1772071877863,2.6184934,2047.2,2046.7,0.0011]
[1772071878182,0.875715,2046.9,2046.0,2.03502204]
[1772071878756,2.92506085,2047.4,2046.2,0.81312643]
[1772071878757,0.875715,2047.2,2046.2,0.81312643]
[1772071879960,0.875715,2046.9,2045.9,2.03507283]
[1772071880167,0.875715,2046.9,2046.0,0.81312643]
[1772071880656,2.09693864,2047.2,2046.2,0.81312643]
[1772071884067,2.09693864,2047.2,2046.4,0.0011]
[1772071884252,2.09693864,2047.2,2046.4,0.81422643]
[1772071884452,1.22122364,2047.2,2046.4,0.81422643]
[1772071886180,4.88453816,2047.3,2046.5,0.81502217]
[1772071886852,5.68294415,2047.3,2046.5,0.81502217]
[1772071888972,0.79840599,2047.2,2046.4,0.0011]
[1772071889170,0.79840599,2047.2,2046.4,2.03777424]
[1772071889364,0.79840599,2047.2,2046.5,0.81502217]
[1772071889560,4.88292439,2048.2,2046.5,0.81502217]
[1772071889561,1.22189795,2047.7,2047.0,0.81502217]
[1772071889780,0.001,2047.7,2047.0,0.81502217]
[1772071890077,2.92167077,2048.1,2047.3,1.7427784]
[1772071890258,2.92167077,2048.1,2047.4,0.81502217]
[1772071890458,1.7427784,2047.5,2046.6,0.81502217]
[1772071890774,1.702,2047.6,2046.8,0.81502217]
[1772071890972,0.79840599,2047.5,2046.5,0.81502217]
[1772071891574,2.54118439,2047.4,2046.5,0.81502217]
[1772071891969,4.24318439,2047.4,2046.5,0.81502217]
[1772071892187,6.36,2047.8,2046.8,2.58288887]
[1772071892188,0.82188102,2047.7,2046.8,2.58288887]
[1772071892382,1.702,2047.8,2046.5,0.84011047]
[1772071892383,0.82188102,2047.5,2046.5,0.84011047]
[1772071892590,1.22106085,2047.4,2046.6,0.84011047]
[1772071893596,3.78572027,2047.4,2046.6,0.84011047]
[1772071894096,3.78572027,2047.4,2046.4,2.6227134]
[1772071894097,1.7427784,2047.2,2046.4,2.62275351]
[1772071894391,0.82188102,2047.3,2046.4,1.4011]
[1772071894588,2.92418014,2047.2,2046.4,0.0011]
[1772071895796,2.92418014,2047.2,2046.5,0.84011047]
[1772071896166,2.92418014,2047.2,2046.5,0.84121047]
[1772071897486,2.56465942,2047.1,2046.5,0.0011]
[1772071897796,0.82188102,2047.0,2046.5,0.0011]
[1772071897974,1.7427784,2046.9,2046.4,0.0011]
[1772071898293,2.56465942,2046.8,2046.0,0.0011]
[1772071898602,2.92418014,2047.2,2046.0,0.0033]
[1772071898603,1.703,2046.7,2046.0,0.0033]
[1772071898771,1.22153816,2046.6,2046.0,0.0033]
[1772071899274,1.22153816,2046.6,2046.0,0.84341047]
[1772071899789,1.22153816,2046.6,2046.0,0.0033]
[1772071900109,2.04341918,2046.6,2046.1,0.0022]
[1772071900307,0.82188102,2046.5,2046.0,0.0033]
[1772071900702,0.82188102,2046.3,2046.0,0.0011]
[1772071901003,1.22165754,2046.4,2046.0,0.0033]
[1772071902483,2.44153809,2046.2,2045.4,2.6222165]
[1772071902681,4.88567017,2046.9,2045.5,0.84011047]
[1772071903022,2.04329982,2046.8,2045.5,0.84011047]
[1772071904717,5.145,2047.1,2046.2,0.84011047]
[1772071904718,1.22128119,2047.1,2046.2,0.84011047]
[1772071904881,1.22121512,2047.2,2046.2,0.84011047]
[1772071905208,2.44153809,2046.9,2046.2,0.84011047]
[1772071906410,2.44153809,2046.9,2046.1,1.22183666]
[1772071906609,2.44153809,2046.9,2046.0,0.84011047]
[1772071906920,1.22135912,2046.9,2046.2,0.84011047]
[1772071907335,1.22135912,2046.9,2046.1,1.22183666]
[1772071907830,1.22135912,2046.9,2046.1,2.06194713]
[1772071908423,0.82188102,2046.8,2045.9,1.395]
[1772071908645,0.82188102,2046.5,2045.6,4.8885385]
[1772071908810,3.66330179,2046.3,2045.6,2.06224578]
[1772071909007,3.66330179,2046.3,2045.6,0.84011047]
[1772071909309,3.66330179,2046.3,2046.2,0.0011]
[1772071910150,2.04350666,2046.5,2046.2,0.0011]
[1772071914506,1.22156442,2046.6,2046.2,0.0011]
[1772071916739,1.22152127,2046.7,2046.2,0.85512909]
[1772071917245,4.88577501,2046.8,2046.2,0.85512909]
[1772071918545,1.2214188,2046.8,2046.2,0.85512909]
[1772071919453,2.06636741,2046.8,2046.2,0.0011]
[1772071920446,1.2214188,2046.8,2046.2,2.07690401]
[1772071920628,0.84494861,2047.1,2046.3,0.85402909]
[1772071920629,1.22126991,2047.1,2046.3,0.85402909]
[1772071920836,2.93222218,2047.2,2046.3,0.85402909]
[1772071921226,0.001,2046.7,2046.3,0.85402909]
[1772071921648,0.84494861,2047.4,2046.5,0.85402909]
[1772071921823,1.22105072,2047.5,2046.6,0.85402909]
[1772071922326,2.44253809,2047.7,2046.6,0.85402909]
[1772071922327,1.22191085,2047.7,2046.6,0.85402909]
[1772071922519,1.22191085,2047.7,2046.9,0.85402909]
[1772071922520,0.001,2047.7,2046.9,0.85402909]
[1772071922821,1.22059751,2048.2,2046.9,0.85402909]
[1772071923027,1.22059751,2048.2,2047.1,0.85402909]
[1772071923221,1.22059751,2048.2,2047.3,0.85402909]
[1772071923656,4.88316707,2048.3,2047.3,0.85402909]
[1772071923657,4.88316707,2048.3,2047.5,0.85402909]
[1772071924024,0.001,2048.3,2047.5,0.85402909]
[1772071925847,0.001,2048.3,2047.7,0.85402909]
[1772071926038,0.001,2048.3,2047.9,0.85402909]
[1772071926257,2.44153809,2049.0,2047.9,0.85402909]
[1772071926258,4.8802682,2049.1,2048.2,0.85402909]
[1772071926625,1.22004782,2049.1,2048.2,0.85402909]
[1772071927161,1.22004782,2049.1,2048.3,1.383]
[1772071927366,1.22004782,2049.1,2048.4,0.85402909]
[1772071927849,4.88001508,2049.2,2048.1,4.583757]
[1772071927850,2.44153809,2048.8,2048.1,4.583757]
[1772071928455,3.2864867,2049.0,2048.2,0.85402909]
[1772071928649,2.44153809,2049.0,2048.2,0.85402909]
[1772071929766,1.21998828,2049.2,2048.4,0.85402909]
[1772071931033,1.21986923,2049.4,2048.5,0.85402909]
[1772071932757,4.88024065,2049.5,2048.5,0.85402909]
[1772071932758,0.001,2049.5,2048.7,0.85402909]
[1772071933537,2.44153809,2049.1,2048.4,0.85402909]
[1772071933732,3.2874867,2048.8,2048.1,1.378]
[1772071934557,3.2874867,2048.8,2047.8,2.07481492]
[1772071934558,2.44153809,2048.6,2047.8,2.07481492]
[1772071934751,1.22040517,2048.5,2047.8,3.45081492]
[1772071934951,1.22040517,2048.5,2047.8,0.85402909]
[1772071935260,1.22040517,2048.5,2047.6,1.22090434]
[1772071936162,2.44153809,2048.3,2047.5,2.23002909]
[1772071936331,3.2864867,2048.3,2047.5,1.376]
[1772071937228,1.22058392,2048.2,2047.5,2.59699472]
[1772071937939,1.22058392,2048.2,2047.4,2.59401964]
[1772071938143,1.22058392,2048.2,2047.5,0.85402909]
[1772071938344,1.698,2048.7,2047.5,0.85402909]
[1772071938345,1.2203456,2048.6,2047.5,0.85402909]
[1772071938840,2.44153809,2047.9,2046.9,2.07535259]
[1772071939039,3.2864867,2047.9,2046.9,2.07535259]
[1772071939234,1.22082234,2047.8,2046.9,0.85402909]
[1772071939470,1.22082234,2047.8,2046.8,0.0011]
[1772071939471,2.44153809,2047.6,2046.8,0.0011]
[1772071939948,1.22082234,2047.8,2046.9,0.85402909]
[1772071942766,5.72823799,2047.9,2047.0,1.22129946]
[1772071943144,5.72823799,2047.9,2046.9,2.07534235]
[1772071943336,0.84494861,2047.8,2046.9,2.07534235]
[1772071944650,0.84494861,2047.8,2047.0,0.85402909]
[1772071945182,0.84494861,2047.8,2046.9,1.22131326]
[1772071945183,0.84494861,2047.4,2046.8,0.0011]
[1772071945363,0.84494861,2047.4,2046.5,0.0011]
[1772071945668,0.84494861,2047.1,2046.5,0.0011]
[1772071946241,0.84494861,2047.1,2047.0,0.0011]
[1772071946441,0.84494861,2047.1,2046.7,0.0011]
[1772071947047,4.88307618,2047.5,2046.7,0.0011]
[1772071947048,2.44153809,2047.5,2046.7,0.0011]
[1772071947249,1.2211205,2047.3,2046.7,0.0011]
[1772071948147,2.03142656,2047.3,2046.7,0.0011]
[1772071948675,1.2211205,2047.3,2046.7,0.0011]
[1772071948985,2.03142656,2047.3,2046.7,0.0011]
[1772071949179,5.69478806,2047.4,2046.7,0.0011]
[1772071949347,0.81030606,2047.3,2046.7,0.0011]
[1772071949657,0.81030606,2046.9,2046.2,0.0011]
[1772071949863,0.81030606,2046.6,2046.2,0.0011]
[1772071950167,0.81030606,2046.6,2046.0,0.0011]
[1772071951147,1.22159784,2046.5,2046.0,0.0011]
[1772071951347,3.25184415,2046.4,2046.0,0.0011]
[1772071951773,0.81030606,2046.4,2046.0,0.0011]
[1772071952904,3.25184415,2046.4,2046.0,0.0011]
[1772071953198,1.22171724,2046.3,2046.0,0.0011]
[1772071953595,0.86724133,2046.2,2045.9,0.0011]
[1772071953894,0.86724133,2046.2,2045.4,0.80047754]
[1772071953895,2.44153809,2046.1,2045.4,0.80047754]
[1772071954597,1.22171724,2046.3,2045.1,0.84429491]
[1772071954598,3.30877942,2046.0,2045.1,0.84429491]
[1772071954808,1.22171724,2046.3,2045.1,0.84429491]
[1772071954973,3.66325533,2046.3,2045.1,0.84429491]
[1772071955293,3.66325533,2046.3,2045.3,0.84429491]
[1772071955615,3.66325533,2046.3,2044.3,2.06719091]
[1772071955616,3.30877942,2045.4,2044.3,2.06719091]
[1772071955920,2.44153809,2045.5,2044.4,0.84429491]
[1772071956075,0.86724133,2045.4,2044.4,0.84429491]
[1772071956587,2.44153809,2045.1,2043.8,0.84429491]
[1772071956770,2.44153809,2045.1,2043.9,0.84429491]
[1772071957395,1.22249388,2045.0,2044.0,0.84429491]
[1772071957691,3.30877942,2044.9,2044.0,0.84429491]
[1772071957895,1.22249388,2045.0,2044.0,0.84429491]
[1772071958595,2.44153809,2044.9,2044.6,0.0011]
[1772071958803,2.44153809,2044.7,2043.7,2.06756642]
[1772071959000,4.88997555,2045.2,2043.7,2.06756642]
[1772071959001,5.75031751,2045.5,2044.4,0.84539491]
[1772071959200,1.22225481,2045.4,2044.5,0.84429491]
[1772071959497,1.22225481,2045.4,2044.6,1.22273305]
[1772071959715,1.22225481,2045.4,2044.5,2.06706137]
[1772071959918,2.44153809,2045.2,2044.5,0.84429491]
[1772071960297,2.44153809,2045.2,2044.4,0.0011]
[1772071960515,3.30877942,2045.2,2044.4,0.0011]
[1772071960918,0.86724133,2045.1,2044.4,0.0011]
[1772071961220,3.78349614,2045.4,2044.4,0.0011]
[1772071961396,1.74663217,2045.2,2044.4,0.0011]
[1772071961593,1.22243411,2045.1,2044.4,0.0011]
[1772071962014,1.74663217,2044.6,2043.0,1.74663217]
[1772071962217,1.74663217,2044.6,2043.5,0.84429491]
[1772071962695,2.6138735,2045.0,2043.8,0.84429491]
[1772071963007,2.6138735,2045.0,2043.9,0.84429491]
[1772071963822,1.22255367,2044.9,2044.0,0.84429491]
[1772071964924,1.22246027,2045.1,2044.1,0.84429491]
[1772071965126,1.22246027,2045.1,2044.0,1.74663217]
[1772071965127,1.22246027,2045.1,2044.0,0.84429491]
[1772071965427,1.74663217,2045.0,2044.0,0.84429491]
[1772071965798,1.22255367,2044.9,2044.2,0.84429491]
[1772071968229,1.22255367,2044.9,2044.2,1.22296994]
[1772071968528,1.22255367,2044.9,2044.3,0.84429491]
[1772071969414,1.22255367,2044.9,2044.1,2.6272258]
[1772071969615,1.22255367,2044.9,2044.1,3.85025671]
[1772071970499,1.22255367,2044.9,2044.1,2.6272258]
[1772071970732,1.22255367,2044.9,2044.4,0.0011]
[1772071971234,1.74663217,2044.8,2044.4,0.0011]
[1772071971646,2.6138735,2044.8,2044.4,0.0011]
[1772071971808,0.86724133,2044.9,2044.2,0.0011]
[1772071972136,1.22261345,2044.8,2044.2,0.0011]
[1772071974917,1.22261345,2044.8,2044.2,0.84539491]
[1772071975241,4.8897768,2045.1,2044.2,0.84539491]
[1772071975659,4.8897768,2045.1,2044.2,0.0011]
[1772071975660,2.6138735,2044.9,2044.2,0.0011]
[1772071975825,1.22261345,2044.8,2044.2,0.0011]
[1772071976817,0.79623711,2044.7,2044.2,0.0011]
[1772071977327,0.79623711,2044.7,2044.0,2.53318722]
[1772071978645,0.79623711,2044.9,2044.1,0.82584479]
[1772071978832,2.54286928,2044.8,2044.1,1.357]
[1772071979022,0.79623711,2044.7,2043.9,2.58124642]
[1772071979523,1.74663217,2044.6,2043.9,0.0011]
[1772071979948,2.54286928,2044.6,2043.9,0.0011]
[1772071980319,0.79623711,2044.6,2043.9,0.82694479]
[1772071980658,1.22279285,2044.5,2043.9,2.05008301]
[1772071980826,1.2227068,2044.7,2044.0,0.82584479]
[1772071981627,2.96933897,2044.7,2044.0,0.82584479]
[1772071982333,1.2227068,2044.7,2044.0,0.82584479]
[1772071982755,4.890681,2044.8,2044.0,2.04889573]
[1772071983381,1.22261345,2044.8,2044.2,0.82694479]
[1772071983656,3.44163217,2045.0,2044.2,0.82694479]
[1772071983657,0.001,2044.7,2044.2,0.82694479]
[1772071984854,0.001,2044.7,2044.2,2.04988887]
[1772071985565,0.001,2044.7,2044.2,0.82694479]
[1772071985736,0.001,2044.7,2044.2,0.0011]
[1772071985952,2.54286928,2044.6,2044.2,0.0011]
[1772071986666,0.79623711,2044.6,2044.2,0.0011]
[1772071986967,2.01901797,2044.6,2044.2,0.0011]
[1772071987552,0.79623711,2044.5,2044.0,0.0011]
[1772071988183,2.54286928,2044.2,2043.7,0.0011]
[1772071988341,2.54286928,2044.2,2042.8,4.89524164]
[1772071988342,0.79623711,2043.9,2043.0,0.82584479]
[1772071988840,0.79623711,2044.2,2043.2,0.82584479]
[1772071989041,0.79623711,2044.2,2043.4,0.82584479]
[1772071989260,1.22291248,2044.3,2043.5,0.82804479]
[1772071989570,4.66352123,2044.4,2043.5,0.82804479]
[1772071989801,1.22287206,2044.4,2043.5,0.82804479]
[1772071990012,1.22283492,2044.5,2043.5,0.82584479]
[1772071990172,1.74663217,2044.2,2043.6,0.0022]
[1772071990381,2.54286928,2044.4,2043.4,0.82584479]
[1772071990689,0.79623711,2044.3,2043.5,0.0022]
[1772071990883,3.76587517,2044.2,2043.5,0.0022]
[1772071991078,1.22285267,2044.4,2043.5,0.82804479]
[1772071991676,2.01908978,2044.4,2043.5,0.82804479]
[1772071992406,0.79623711,2044.3,2043.5,0.82804479]
[1772071992779,1.22285267,2044.4,2043.5,0.82804479]
[1772071992780,1.22283895,2044.5,2043.5,0.82804479]
[1772071992985,2.54286928,2044.3,2043.5,2.05143342]
[1772071994304,2.54286928,2044.3,2043.5,0.82804479]
[1772071994602,2.54286928,2044.3,2043.5,2.05143397]
[1772071995507,0.79623711,2044.3,2043.6,0.82584479]
[1772071995687,0.79623711,2044.4,2043.6,0.82584479]
[1772071995885,0.79623711,2044.4,2043.7,0.82804479]
[1772071996110,0.79623711,2044.4,2043.7,0.82914479]
[1772071996986,1.74663217,2043.8,2043.5,0.0011]
[1772071997210,0.79623711,2044.2,2043.5,2.05033335]
[1772071997410,1.69,2044.3,2043.6,0.82584479]
[1772071997591,1.22297231,2044.2,2043.6,0.82584479]
[1772071997790,1.74663217,2044.4,2043.6,2.04917295]
[1772071997791,3.7657765,2044.4,2043.6,2.04917295]
[1772071998114,0.79623711,2044.3,2043.6,1.22332816]
[1772071998408,0.79623711,2044.3,2043.6,0.82584479]
[1772071998713,1.22290722,2044.4,2043.6,0.82584479]
[1772072000423,1.22290722,2044.4,2043.7,2.0491163]
[1772072000634,2.01914433,2044.4,2043.7,2.0491163]
[1772072000790,0.79623711,2044.3,2043.6,1.22330708]
[1772072000986,2.54286928,2044.3,2043.6,1.22330708]
[1772072002224,0.79623711,2044.2,2043.6,1.22330708]
[1772072002415,1.22303214,2044.1,2043.5,0.0011]
[1772072003022,1.74663217,2044.1,2043.5,0.82694479]
[1772072003224,2.01921082,2044.2,2043.5,0.82694479]
[1772072004221,0.79623711,2043.9,2043.5,0.0011]
[1772072004729,2.01931142,2044.1,2043.5,0.0011]
[1772072005033,0.79623711,2043.9,2043.5,0.0011]
[1772072006234,1.74663217,2044.0,2043.5,0.0011]
[1772072006536,1.22310586,2044.0,2043.5,0.0011]
[1772072007038,3.8090487,2044.0,2043.5,0.0011]
[1772072007199,0.83931067,2043.9,2043.5,0.0011]
[1772072007924,1.74663217,2043.6,2043.2,0.0011]
[1772072008128,1.74663217,2043.4,2042.4,0.82264906]
[1772072008325,3.43663217,2043.6,2042.4,0.82264906]
[1772072008554,3.43663217,2043.6,2042.6,0.82264906]
[1772072008707,4.65997163,2043.6,2042.8,0.82264906]
[1772072008908,1.74663217,2043.4,2042.8,0.82264906]
[1772072009298,1.74663217,2043.4,2043.2,0.0011]
[1772072009697,1.74663217,2043.4,2042.6,0.82264906]
[1772072009929,3.75265013,2043.6,2042.5,1.2239902]
[1772072009930,5.4992823,2043.6,2042.8,0.82264906]
[1772072010441,0.83931067,2043.9,2043.0,0.82264906]
[1772072010729,3.8091,2043.9,2043.1,0.82264906]
[1772072011733,0.001,2044.1,2043.1,0.82264906]
[1772072011918,1.2240369,2044.1,2043.1,0.82264906]
[1772072012118,2.97066907,2044.1,2043.1,0.82264906]
[1772072012528,3.74991601,2044.1,2043.2,1.99915938]
[1772072012745,3.74991601,2044.1,2043.2,0.77558852]
[1772072012746,1.74663217,2043.9,2043.2,0.77558852]
[1772072013046,1.74663217,2043.9,2043.1,1.22358512]
[1772072013047,2.52587911,2043.9,2043.1,1.22358512]
[1772072013259,2.52587911,2043.7,2043.0,0.77558852]
[1772072013442,2.52587911,2043.7,2043.0,1.99927592]
[1772072013630,2.52587911,2043.7,2043.0,0.77558852]
[1772072013950,0.77924694,2043.6,2042.9,1.347]
[1772072014134,0.77924694,2043.6,2042.9,2.57075054]
[1772072014331,1.74663217,2043.7,2042.9,3.34633906]
[1772072014523,2.52587911,2043.9,2043.0,0.77558852]
[1772072014722,2.52587911,2043.9,2043.1,1.22363075]
[1772072014723,1.22321166,2043.8,2043.1,1.22363075]
[1772072014949,3.74906421,2043.9,2043.1,1.99921927]
[1772072015837,2.97069668,2044.1,2043.2,0.77558852]
[1772072016223,1.22403584,2044.1,2043.2,0.77558852]
[1772072016738,1.22403584,2044.1,2043.3,1.9990995]
[1772072016940,0.001,2044.1,2043.4,0.77558852]
[1772072017512,0.001,2044.1,2043.4,2.12158852]
[1772072018047,2.52687911,2044.1,2043.4,2.12158852]
[1772072018210,2.52687911,2044.1,2043.4,1.346]
[1772072018916,1.74663217,2043.7,2043.1,1.22360395]
[1772072019118,0.77924694,2043.7,2043.1,1.22360395]
[1772072019971,0.77924694,2043.1,2042.2,0.1637303]
[1772072020179,1.74663217,2042.9,2042.2,0.1433691]
[1772072020328,0.77924694,2043.0,2042.2,0.77558852]
[1772072020329,2.46524694,2043.0,2042.2,0.77558852]
[1772072020535,0.77924694,2043.0,2042.2,0.77558852]
[1772072020771,2.00296681,2043.0,2042.3,1.22411007]
[1772072020952,2.00296681,2043.0,2042.2,0.77558852]
[1772072020953,2.00295187,2043.0,2042.2,1.99971549]
[1772072021247,2.52587911,2042.9,2042.0,0.77558852]
[1772072021660,2.52587911,2042.9,2042.8,0.0011]
[1772072021879,0.77924694,2042.8,2041.8,1.99995394]
[1772072022132,0.77924694,2042.8,2041.9,0.77558852]
[1772072022568,1.688,2043.2,2042.4,1.74663217]
[1772072022784,1.688,2043.2,2042.3,1.99964469]
[1772072022785,3.69082103,2043.2,2042.3,1.99964469]
[1772072023460,0.77924694,2043.0,2042.1,4.56483832]
[1772072023659,0.77924694,2043.0,2042.2,0.77558852]
[1772072024970,2.00294281,2043.0,2042.3,1.22411007]
[1772072025271,2.00294281,2043.0,2042.2,1.99971728]
[1772072026151,0.77924694,2042.9,2042.1,3.78923221]
[1772072026739,0.77924694,2042.9,2042.1,1.22421229]
[1772072027384,2.00300575,2042.9,2042.1,1.22421229]
[1772072028390,2.00300669,2042.9,2042.1,1.22421229]
[1772072029490,4.89479303,2043.0,2042.0,3.35086056]
[1772072029491,0.77924694,2042.8,2042.0,3.35086056]
[1772072030587,0.77924694,2042.8,2042.0,3.35086663]
[1772072030786,0.77924694,2042.8,2042.0,2.00287074]
[1772072030990,0.77924694,2042.8,2042.0,2.00287169]
[1772072031492,0.77924694,2042.8,2042.1,0.77558852]
[1772072032777,0.77924694,2043.1,2042.1,0.77558852]
[1772072032972,3.68390845,2043.1,2042.1,0.77558852]
[1772072033172,3.68390845,2043.1,2042.2,0.77668852]
[1772072033373,0.001,2042.7,2042.3,1.22411007]
[1772072033869,0.001,2042.7,2042.2,2.00081264]
[1772072034188,0.001,2042.7,2042.2,1.22526206]
[1772072034793,0.001,2042.7,2042.2,0.0011]
[1772072035003,0.001,2042.7,2042.3,0.77558852]
[1772072035510,0.001,2042.7,2042.2,0.0011]
[1772072035997,0.001,2042.7,2042.2,0.80861443]
[1772072038388,0.001,2042.7,2042.2,2.03275099]
[1772072040408,0.584795,2042.8,2042.3,0.80751443]
[1772072040409,0.54223139,2042.8,2042.3,0.80751443]
[1772072040791,0.42302302,2043.5,2042.6,0.80751443]
[1772072040980,0.42302302,2043.5,2042.8,0.80751443]
[1772072041913,0.42302302,2043.5,2042.9,0.80751443]
[1772072042414,0.42302302,2043.5,2043.1,0.80751443]
[1772072043022,0.42302302,2043.5,2043.3,0.80751443]
[1772072043231,0.001,2043.9,2043.3,0.80751443]
[1772072043925,0.77269855,2043.6,2042.6,0.80751443]
[1772072044230,0.001,2043.9,2042.7,0.80751443]
[1772072044231,3.22271042,2043.5,2042.7,0.80751443]
[1772072044432,1.22351098,2043.3,2042.5,4.89588944]
[1772072044830,1.22338335,2043.6,2042.6,0.80751443]
[1772072045002,1.22417045,2043.9,2042.7,0.80751443]
[1772072045203,0.77269855,2043.8,2042.7,0.80751443]
[1772072045503,0.77269855,2043.8,2042.5,4.89588944]
[1772072045504,0.77269855,2043.7,2042.5,4.89588944]
[1772072045904,0.77269855,2043.7,2042.5,5.70340387]
[1772072046233,0.77269855,2043.4,2042.5,5.70340387]
[1772072046423,1.99617314,2043.4,2043.3,0.0011]
[1772072046809,0.77269855,2043.4,2043.3,0.0011]
[1772072047338,4.89364491,2043.9,2043.3,0.0011]
[1772072047339,0.001,2043.9,2043.3,0.0011]
[1772072047517,0.77269855,2043.8,2043.3,0.0011]
[1772072048539,1.22327151,2043.7,2043.3,0.0011]
[1772072048924,1.99597006,2043.7,2043.3,0.0011]
[1772072049133,0.77269855,2043.6,2043.0,0.0011]
[1772072049731,0.77269855,2043.5,2043.0,0.0011]
[1772072050051,4.89408606,2043.9,2043.0,0.80861443]
[1772072050052,0.001,2043.9,2043.0,0.80861443]
[1772072050250,0.77269855,2043.8,2043.0,0.80861443]
[1772072050719,0.77269855,2043.8,2043.1,1.22363075]
[1772072051119,0.001,2043.9,2043.2,0.80751443]
[1772072052713,0.001,2043.9,2043.3,1.22351098]
[1772072053034,0.001,2043.9,2043.0,1.3471]
[1772072053035,0.77369855,2043.9,2043.0,1.3471]
[1772072053233,3.22271042,2043.8,2043.1,1.22363075]
[1772072054138,0.77269855,2043.8,2043.1,1.22363075]
[1772072054516,0.001,2043.9,2043.2,0.80751443]
[1772072054940,0.001,2043.9,2043.3,1.22351098]
[1772072055618,0.001,2043.9,2043.3,2.03102541]
[1772072056326,0.001,2043.9,2043.2,1.22352636]
[1772072056715,0.77369855,2043.9,2043.0,3.37827175]
[1772072057457,1.9968656,2043.9,2043.0,3.37827175]
[1772072057760,0.77269855,2043.8,2043.0,3.37827175]
[1772072058431,0.001,2043.9,2043.1,0.80751443]
[1772072058939,1.22415318,2043.9,2043.1,0.80751443]
[1772072059254,1.22415318,2043.9,2043.2,1.22357086]
[1772072059255,0.001,2043.9,2043.2,1.22357086]
[1772072059555,0.77369855,2043.9,2043.2,1.22357086]
[1772072060532,0.77369855,2043.9,2043.2,1.22467086]
[1772072060732,0.001,2043.7,2043.2,1.22467086]
[1772072061646,0.001,2043.7,2043.2,0.0011]
[1772072063662,0.77369855,2043.7,2043.2,0.0011]
[1772072064372,0.77369855,2043.7,2043.0,1.3471]
[1772072064373,0.77269855,2043.3,2042.8,0.0011]
[1772072065564,1.99625905,2043.3,2042.8,0.0011]
[1772072065769,0.77269855,2043.3,2042.8,0.0011]
[1772072066185,1.22351445,2043.3,2042.8,0.0011]
[1772072066384,0.001,2043.7,2042.8,0.83218392]
[1772072066681,1.22428626,2043.7,2042.8,0.83218392]
[1772072066875,0.001,2043.7,2042.8,0.83218392]
[1772072067075,0.001,2043.7,2042.8,3.28219579]
[1772072067381,0.001,2043.7,2042.9,0.83108392]
[1772072067679,0.001,2043.7,2043.0,2.05477457]
[1772072069064,0.001,2043.7,2043.1,0.83108392]